fUSD/lending_fUSD_20240213
["ID","MTS","AMOUNT","RATE_DAILY","PERIOD"]
[313944295,1707844297176,-500.0,0.00032054,2]
[313944296,1707844297186,-500.0,0.00032054,2]
[313944297,1707844297195,-2732.31,0.00032054,2]
[313944298,1707844297204,-500.0,0.00032054,2]
[313944299,1707844297213,-500.0,0.00032054,2]
[313944300,1707844297223,-500.0,0.00032054,2]
[313944301,1707844297232,-1017.52,0.00032054,2]
[313944302,1707844297241,-830.13,0.00032054,2]
[313944303,1707844297250,-972.43,0.00032054,2]
[313944304,1707844297261,-500.0,0.00032054,2]
[313944305,1707844297271,-539.37,0.00032054,2]
[313944306,1707844297282,-500.0,0.00032054,2]
[313944307,1707844297292,-868.91,0.00032054,2]
[313944308,1707844297302,-500.0,0.00032054,2]
[313944309,1707844297312,-525.01,0.00032054,2]
[313944310,1707844297323,-472.0,0.00032054,2]
[313944311,1707844297334,-500.0,0.00032054,2]
[313944312,1707844297344,-629.55,0.00032054,2]
[313944313,1707844297353,-500.0,0.00032054,2]
[313944314,1707844297364,-858.16,0.00032054,2]
[313944315,1707844297374,-500.0,0.00032054,2]
[313944316,1707844297384,-524.89320659,0.00032054,2]
[313944317,1707844297394,-552.26,0.00032054,2]
[313944318,1707844297404,-3042.48,0.00032054,2]
[313944319,1707844297414,-1415.52,0.00032054,2]
[313944320,1707844297424,-500.0,0.00032054,2]
[313944321,1707844297434,-500.0,0.00032054,2]
[313944322,1707844297446,-1038.84,0.00032054,2]
[313944323,1707844297456,-500.0,0.00032054,2]
[313944324,1707844297466,-500.0,0.00032054,2]
[313944325,1707844297476,-500.0,0.00032054,2]
[313944326,1707844297485,-1247.85,0.00032054,2]
[313944327,1707844297494,-500.0,0.00032054,2]
[313944328,1707844297503,-500.0,0.00032054,2]
[313944329,1707844297513,-500.0,0.00032054,2]
[313944330,1707844297522,-790.24,0.00032054,2]
[313944331,1707844297531,-2805.34,0.00032054,2]
[313944332,1707844297540,-1697.28,0.00032054,2]
[313944333,1707844297550,-500.0,0.00032054,2]
[313944334,1707844297559,-2116.33,0.00032054,2]
[313944335,1707844297568,-549.56,0.00032054,2]
[313944336,1707844297578,-500.0,0.00032054,2]
[313944337,1707844297587,-500.0,0.00032054,2]
[313944338,1707844297596,-500.0,0.00032054,2]
[313944339,1707844297605,-335.96,0.00032054,2]
[313944340,1707844297614,-1175.54,0.00032054,2]
[313944341,1707844297623,-759.92,0.00032054,2]
[313944342,1707844297632,-546.2,0.00032054,2]
[313944343,1707844297641,-751.2,0.00032054,2]
[313944344,1707844297650,-500.0,0.00032054,2]
[313944345,1707844297659,-1788.82,0.00032054,2]
[313944346,1707844297669,-875.2,0.00032054,2]
[313944347,1707844297677,-1080.3,0.00032054,2]
[313944348,1707844297688,-503.9,0.00032054,2]
[313944349,1707844297697,-900.51,0.00032054,2]
[313944350,1707844297706,-500.0,0.00032054,2]
[313944351,1707844297715,-630.01,0.00032054,2]
[313944352,1707844297725,-610.21,0.00032054,2]
[313944353,1707844297734,-500.0,0.00032054,2]
[313944354,1707844297743,-500.0,0.00032054,2]
[313944355,1707844297752,-500.0,0.00032054,2]
[313944356,1707844297763,-500.0,0.00032054,2]
[313944357,1707844297772,-3980.59,0.00032054,2]
[313944358,1707844297782,-517.81,0.00032054,2]
[313944359,1707844297791,-491.88,0.000321,2]
[313944360,1707844297800,-504.347275,0.00032233,2]
[313944361,1707844297809,-500.0,0.00032328,2]
[313944362,1707844297819,-500.0,0.00032328,2]
[313944363,1707844297828,-1934.6,0.00032328,2]
[313944364,1707844297837,-796.91,0.00032328,2]
[313944365,1707844297846,-500.0,0.00032328,2]
[313944366,1707844297855,-500.0,0.00032328,2]
[313944367,1707844297864,-500.0,0.00032328,2]
[313944368,1707844297873,-540.54,0.00032328,2]
[313944369,1707844297883,-500.0,0.00032328,2]
[313944370,1707844297892,-280.54,0.00032328,2]
[313944371,1707844297901,-502.25,0.00032328,2]
[313944372,1707844297909,-1707.88,0.00032328,2]
[313944373,1707844297918,-708.66,0.00032328,2]
[313944374,1707844297927,-1697.57,0.00032328,2]
[313944375,1707844297938,-1398.01,0.00032328,2]
[313944376,1707844297947,-2373.55,0.00032328,2]
[313944377,1707844297957,-750.3,0.00032328,2]
[313944378,1707844297966,-502.3,0.00032328,2]
[313944379,1707844297975,-668.93,0.00032328,2]
[313944380,1707844297984,-537.7,0.00032328,2]
[313944381,1707844297993,-720.34,0.00032328,2]
[313944382,1707844298002,-500.0,0.00032328,2]
[313944383,1707844298012,-615.8,0.00032328,2]
[313944384,1707844298021,-500.0,0.00032328,2]
[313944385,1707844298030,-500.0,0.00032328,2]
[313944386,1707844298039,-2732.31,0.00032328,2]
[313944387,1707844298049,-500.0,0.00032328,2]
[313944388,1707844298059,-500.0,0.00032328,2]
[313944389,1707844298069,-500.0,0.00032328,2]
[313944390,1707844298078,-1017.52,0.00032328,2]
[313944391,1707844298087,-830.13,0.00032328,2]
[313944392,1707844298098,-972.43,0.00032328,2]
[313944393,1707844298108,-500.0,0.00032328,2]
[313944394,1707844298117,-539.37,0.00032328,2]
[313944395,1707844298128,-500.0,0.00032328,2]
[313944396,1707844298138,-868.91,0.00032328,2]
[313944397,1707844298147,-500.0,0.00032328,2]
[313944398,1707844298156,-525.01,0.00032328,2]
[313944399,1707844298166,-500.0,0.00032328,2]
[313944400,1707844298175,-629.55,0.00032328,2]
[313944401,1707844298184,-500.0,0.00032328,2]
[313944402,1707844298195,-858.16,0.00032328,2]
[313944403,1707844298204,-379.88,0.00032328,2]
[313944404,1707844298214,-552.26,0.00032328,2]
[313944405,1707844298223,-3042.48,0.00032328,2]
[313944406,1707844298232,-1415.52,0.00032328,2]
[313944407,1707844298241,-500.0,0.00032328,2]
[313944408,1707844298250,-500.0,0.00032328,2]
[313944409,1707844298259,-1038.84,0.00032328,2]
[313944410,1707844298268,-500.0,0.00032328,2]
[313944411,1707844298278,-500.0,0.00032328,2]
[313944412,1707844298287,-500.0,0.00032328,2]
[313944413,1707844298296,-1247.85,0.00032328,2]
[313944414,1707844298305,-500.0,0.00032328,2]
[313944415,1707844298315,-500.0,0.00032328,2]
[313944416,1707844298324,-500.0,0.00032328,2]
[313944417,1707844298333,-790.24,0.00032328,2]
[313944418,1707844298343,-2805.34,0.00032328,2]
[313944419,1707844298351,-1697.28,0.00032328,2]
[313944420,1707844298361,-500.0,0.00032328,2]
[313944421,1707844298370,-2116.33,0.00032328,2]
[313944422,1707844298378,-549.56,0.00032328,2]
[313944423,1707844298387,-500.0,0.00032328,2]
[313944424,1707844298396,-500.0,0.00032328,2]
[313944425,1707844298406,-440.19,0.00032328,2]
[313944426,1707844298414,-1175.54,0.00032328,2]
[313944427,1707844298424,-759.92,0.00032328,2]
[313944428,1707844298433,-546.2,0.00032328,2]
[313944429,1707844298444,-751.2,0.00032328,2]
[313944430,1707844298453,-500.0,0.00032328,2]
[313944431,1707844298462,-1788.82,0.00032328,2]
[313944432,1707844298472,-875.2,0.00032328,2]
[313944433,1707844298480,-1080.3,0.00032328,2]
[313944434,1707844298489,-503.9,0.00032328,2]
[313944435,1707844298499,-900.51,0.00032328,2]
[313944436,1707844298509,-500.0,0.00032328,2]
[313944437,1707844298518,-630.01,0.00032328,2]
[313944438,1707844298527,-610.21,0.00032328,2]
[313944439,1707844298537,-155.10332322,0.00032328,2]
[313944440,1707844298546,-301.86,0.00032328,2]
[313944441,1707844298554,-500.0,0.00032328,2]
[313944442,1707844298564,-500.0,0.00032328,2]
[313944443,1707844298573,-3980.59,0.00032328,2]
[313944444,1707844298581,-517.81,0.00032328,2]
[313944445,1707844298590,-2930.43053173,0.00032364,4]
[313944446,1707844298599,-8156.0,0.0003248,2]
[313944447,1707844298608,-42539.0,0.0003248,2]
[313944448,1707844298617,-2287.0,0.0003248,2]
[313944449,1707844298626,-19832.0,0.0003248,2]
[313944450,1707844298635,-5644.225,0.0003248,2]
[313944451,1707844298644,-7442.215,0.0003248,2]
[313944452,1707844298653,-2925.0,0.0003248,2]
[313944453,1707844298662,-4206.0,0.0003248,2]
[313944454,1707844298670,-1039.538,0.0003248,2]
[313944455,1707844298679,-181.268,0.0003248,2]
[313944456,1707844298690,-253.30598723,0.0003254,30]
[313944457,1707844298699,-151.0,0.00032541,4]
[313944458,1707844298708,-500.0,0.00032602,2]
[313944459,1707844298717,-500.0,0.00032602,2]
[313944460,1707844298726,-1934.6,0.00032602,2]
[313944461,1707844298735,-796.91,0.00032602,2]
[313944462,1707844298744,-500.0,0.00032602,2]
[313944463,1707844298753,-500.0,0.00032602,2]
[313944464,1707844298762,-500.0,0.00032602,2]
[313944465,1707844298771,-540.54,0.00032602,2]
[313944466,1707844298780,-500.0,0.00032602,2]
[313944467,1707844298788,-502.25,0.00032602,2]
[313944468,1707844298798,-1707.88,0.00032602,2]
[313944469,1707844298807,-708.66,0.00032602,2]
[313944470,1707844298816,-1697.57,0.00032602,2]
[313944471,1707844298825,-1398.01,0.00032602,2]
[313944472,1707844298834,-2373.55,0.00032602,2]
[313944473,1707844298843,-750.3,0.00032602,2]
[313944474,1707844298852,-502.3,0.00032602,2]
[313944475,1707844298861,-668.93,0.00032602,2]
[313944476,1707844298870,-537.7,0.00032602,2]
[313944477,1707844298879,-720.34,0.00032602,2]
[313944478,1707844298888,-500.0,0.00032602,2]
[313944479,1707844298896,-615.8,0.00032602,2]
[313944480,1707844298905,-500.0,0.00032602,2]
[313944481,1707844298914,-500.0,0.00032602,2]
[313944482,1707844298923,-2732.31,0.00032602,2]
[313944483,1707844298932,-268.77,0.00032602,2]
[313944484,1707844298943,-500.0,0.00032602,2]
[313944485,1707844298952,-500.0,0.00032602,2]
[313944486,1707844298961,-1017.52,0.00032602,2]
[313944487,1707844298970,-830.13,0.00032602,2]
[313944488,1707844298979,-972.43,0.00032602,2]
[313944489,1707844298989,-500.0,0.00032602,2]
[313944490,1707844298998,-539.37,0.00032602,2]
[313944491,1707844299007,-500.0,0.00032602,2]
[313944492,1707844299017,-500.0,0.00032602,2]
[313944493,1707844299026,-868.91,0.00032602,2]
[313944494,1707844299035,-525.01,0.00032602,2]
[313944495,1707844299045,-500.0,0.00032602,2]
[313944496,1707844299055,-629.55,0.00032602,2]
[313944497,1707844299067,-500.0,0.00032602,2]
[313944498,1707844299076,-858.16,0.00032602,2]
[313944499,1707844299086,-552.26,0.00032602,2]
[313944500,1707844299096,-3042.48,0.00032602,2]
[313944501,1707844299105,-1415.52,0.00032602,2]
[313944502,1707844299114,-500.0,0.00032602,2]
[313944503,1707844299123,-348.68244774,0.00032602,2]
[313944504,1707844299132,-1038.84,0.00032602,2]
[313944505,1707844299142,-500.0,0.00032602,2]
[313944506,1707844299151,-500.0,0.00032602,2]
[313944507,1707844299161,-500.0,0.00032602,2]
[313944508,1707844299170,-1247.85,0.00032602,2]
[313944509,1707844299179,-246.91365479,0.00032602,2]
[313944510,1707844299190,-500.0,0.00032602,2]
[313944511,1707844299200,-500.0,0.00032602,2]
[313944512,1707844299209,-2805.34,0.00032602,2]
[313944513,1707844299219,-790.24,0.00032602,2]
[313944514,1707844299229,-1697.28,0.00032602,2]
[313944515,1707844299239,-500.0,0.00032602,2]
[313944516,1707844299249,-549.56,0.00032602,2]
[313944517,1707844299258,-515.59458455,0.00032602,2]
[313944518,1707844299267,-2116.33,0.00032602,2]
[313944519,1707844299276,-500.0,0.00032602,2]
[313944520,1707844299286,-1175.54,0.00032602,2]
[313944521,1707844299295,-759.92,0.00032602,2]
[313944522,1707844299304,-546.2,0.00032602,2]
[313944523,1707844299313,-751.2,0.00032602,2]
[313944524,1707844299322,-500.0,0.00032602,2]
[313944525,1707844299332,-1788.82,0.00032602,2]
[313944526,1707844299341,-875.2,0.00032602,2]
[313944527,1707844299350,-1080.3,0.00032602,2]
[313944528,1707844299359,-503.9,0.00032602,2]
[313944529,1707844299368,-900.51,0.00032602,2]
[313944530,1707844299377,-630.01,0.00032602,2]
[313944531,1707844299386,-500.0,0.00032602,2]
[313944532,1707844299395,-610.21,0.00032602,2]
[313944533,1707844299404,-500.0,0.00032602,2]
[313944534,1707844299413,-500.0,0.00032602,2]
[313944535,1707844299422,-3980.59,0.00032602,2]
[313944536,1707844299434,-517.81,0.00032602,2]
[313944537,1707844299444,-504.347275,0.00032636,2]
[313944538,1707844299453,-3000.0,0.00032666,5]
[313944539,1707844299462,-153.36,0.000327,2]
[313944540,1707844299471,-153.36,0.000327,2]
[313944541,1707844299480,-670.81687603,0.0003278,4]
[313944542,1707844299489,-2930.43053173,0.0003278,4]
[313944543,1707844299498,-220.60720138,0.0003278,2]
[313944544,1707844299508,-375.60551747,0.0003278,21]
[313944545,1707844299517,-1015.7477574,0.0003278,2]
[313944546,1707844299526,-757.23370833,0.0003278,2]
[313944547,1707844299535,-48863.73431222,0.00032794,2]
[313944548,1707844299545,-552.03134812,0.00032794,2]
[313944549,1707844299554,-1000.0,0.00032799,2]
[313944550,1707844299563,-107673.0153267,0.00032857,2]
[313944551,1707844299572,-8948.5686705,0.00032857,2]
[313944552,1707844299582,-4353.124201,0.00032857,2]
[313944553,1707844299590,-889.0,0.00032868,2]
[313944554,1707844299600,-500.0,0.00032876,2]
[313944555,1707844299609,-1000.0,0.00032876,7]
[313944556,1707844299618,-500.0,0.00032876,2]
[313944557,1707844299627,-511.24107419,0.00032876,2]
[313944558,1707844299636,-1934.6,0.00032876,2]
[313944559,1707844299645,-796.91,0.00032876,2]
[313944560,1707844299654,-5000.0,0.00032876,2]
[313944561,1707844299664,-317.01,0.00032876,2]
[313944562,1707844299673,-500.0,0.00032876,2]
[313944563,1707844299682,-1000.0,0.00032876,2]
[313944564,1707844299692,-500.0,0.00032876,2]
[313944565,1707844299701,-540.54,0.00032876,2]
[313944566,1707844299710,-466.74,0.00032876,2]
[313944567,1707844299719,-502.25,0.00032876,2]
[313944568,1707844299728,-1707.88,0.00032876,2]
[313944569,1707844299738,-708.66,0.00032876,2]
[313944570,1707844299747,-1697.57,0.00032876,2]
[313944571,1707844299756,-1398.01,0.00032876,2]
[313944572,1707844299765,-2373.55,0.00032876,2]
[313944573,1707844299774,-750.3,0.00032876,2]
[313944574,1707844299783,-502.3,0.00032876,2]
[313944575,1707844299791,-668.93,0.00032876,2]
[313944576,1707844299801,-537.7,0.00032876,2]
[313944577,1707844299810,-720.34,0.00032876,2]
[313944578,1707844299819,-500.0,0.00032876,2]
[313944579,1707844299828,-615.8,0.00032876,2]
[313944580,1707844299837,-500.0,0.00032876,2]
[313944581,1707844299847,-500.0,0.00032876,2]
[313944582,1707844299856,-2732.31,0.00032876,2]
[313944583,1707844299865,-500.0,0.00032876,2]
[313944584,1707844299874,-500.0,0.00032876,2]
[313944585,1707844299883,-1017.52,0.00032876,2]
[313944586,1707844299893,-830.13,0.00032876,2]
[313944587,1707844299902,-972.43,0.00032876,2]
[313944588,1707844299911,-500.0,0.00032876,2]
[313944589,1707844299921,-539.37,0.00032876,2]
[313944590,1707844299930,-185.97,0.00032876,2]
[313944591,1707844299939,-500.0,0.00032876,2]
[313944592,1707844299949,-868.91,0.00032876,2]
[313944593,1707844299958,-525.01,0.00032876,2]
[313944594,1707844299976,-500.0,0.00032876,2]
[313944595,1707844300168,-629.55,0.00032876,2]
[313944596,1707844300178,-500.0,0.00032876,2]
[313944597,1707844300188,-858.16,0.00032876,2]
[313944598,1707844300199,-552.26,0.00032876,2]
[313944599,1707844300209,-3042.48,0.00032876,2]
[313944600,1707844300218,-1415.52,0.00032876,2]
[313944601,1707844300228,-500.0,0.00032876,2]
[313944602,1707844300237,-1038.84,0.00032876,2]
[313944603,1707844300247,-500.0,0.00032876,2]
[313944604,1707844300257,-500.0,0.00032876,2]
[313944605,1707844300266,-500.0,0.00032876,2]
[313944606,1707844300275,-1247.85,0.00032876,2]
[313944607,1707844300285,-500.0,0.00032876,2]
[313944608,1707844300295,-500.0,0.00032876,2]
[313944609,1707844300304,-790.24,0.00032876,2]
[313944610,1707844300313,-2805.34,0.00032876,2]
[313944611,1707844300323,-1697.28,0.00032876,2]
[313944612,1707844300333,-500.0,0.00032876,2]
[313944613,1707844300343,-549.56,0.00032876,2]
[313944614,1707844300353,-2116.33,0.00032876,2]
[313944615,1707844300362,-500.0,0.00032876,2]
[313944616,1707844300372,-500.0,0.00032876,2]
[313944617,1707844300381,-515.50209522,0.00032876,2]
[313944618,1707844300390,-1175.54,0.00032876,2]
[313944619,1707844300398,-759.92,0.00032876,2]
[313944620,1707844300408,-546.2,0.00032876,2]
[313944621,1707844300417,-751.2,0.00032876,2]
[313944622,1707844300426,-393.73,0.00032876,2]
[313944623,1707844300435,-1788.82,0.00032876,2]
[313944624,1707844300447,-875.2,0.00032876,2]
[313944625,1707844300456,-1080.3,0.00032876,2]
[313944626,1707844300465,-503.9,0.00032876,2]
[313944627,1707844300474,-900.51,0.00032876,2]
[313944628,1707844300484,-630.01,0.00032876,2]
[313944629,1707844300493,-218.26496652,0.00032876,2]
[313944630,1707844300503,-610.21,0.00032876,2]
[313944631,1707844300512,-500.0,0.00032876,2]
[313944632,1707844300522,-530.61,0.00032876,2]
[313944633,1707844300531,-3980.59,0.00032876,2]
[313944634,1707844300541,-517.81,0.00032876,2]
[313944635,1707844300550,-151.0,0.00032877,7]
[313944636,1707844300559,-151.0,0.00032877,7]
[313944637,1707844300568,-151.0,0.00032877,7]
[313944638,1707844300577,-151.0,0.00032877,7]
[313944639,1707844300586,-151.0,0.00032877,7]
[313944640,1707844300596,-151.0,0.00032877,7]
[313944641,1707844300605,-151.0,0.00032877,7]
[313944642,1707844300614,-151.0,0.00032877,7]
[313944643,1707844300624,-151.0,0.00032877,7]
[313944644,1707844300633,-151.0,0.00032877,7]
[313944645,1707844300643,-151.0,0.00032877,7]
[313944646,1707844300653,-151.0,0.00032877,7]
[313944647,1707844300662,-151.0,0.00032877,7]
[313944648,1707844300671,-151.0,0.00032877,7]
[313944649,1707844300681,-151.0,0.00032877,7]
[313944650,1707844300691,-151.0,0.00032877,7]
[313944651,1707844300700,-151.0,0.00032877,7]
[313944652,1707844300709,-151.0,0.00032877,7]
[313944653,1707844300718,-151.0,0.00032877,7]
[313944654,1707844300727,-151.0,0.00032877,7]
[313944655,1707844300736,-151.0,0.00032877,7]
[313944656,1707844300746,-151.0,0.00032877,7]
[313944657,1707844300755,-157.455992,0.00032877,7]
[313944658,1707844300764,-229.14,0.00032877,2]
[313944659,1707844300773,-151.0,0.00032877,5]
[313944660,1707844300783,-151.0,0.00032877,5]
[313944661,1707844300791,-151.0,0.00032877,5]
[313944662,1707844300801,-151.0,0.00032877,5]
[313944663,1707844300810,-151.0,0.00032877,5]
[313944664,1707844300819,-151.0,0.00032877,5]
[313944665,1707844300828,-151.0,0.00032877,5]
[313944666,1707844300837,-151.0,0.00032877,5]
[313944667,1707844300846,-151.0,0.00032877,5]
[313944668,1707844300855,-245.16752,0.00032877,5]
[313944669,1707844300865,-269.748076,0.00032877,7]
[313944670,1707844300875,-254.133969,0.00032877,7]
[313944671,1707844300885,-150.0,0.00032877,2]
[313944672,1707844300895,-157.499232,0.00032877,7]
[313944673,1707844300904,-157.499232,0.00032877,7]
[313944674,1707844300914,-157.499232,0.00032877,7]
[313944675,1707844300923,-157.499232,0.00032877,7]
[313944676,1707844300934,-157.499232,0.00032877,7]
[313944677,1707844300944,-157.499232,0.00032877,7]
[313944678,1707844300953,-157.499232,0.00032877,7]
[313944679,1707844300962,-157.499232,0.00032877,7]
[313944680,1707844300973,-157.499232,0.00032877,7]
[313944681,1707844300983,-157.499232,0.00032877,7]
[313944682,1707844300993,-157.499232,0.00032877,7]
[313944683,1707844301002,-157.499232,0.00032877,7]
[313944684,1707844301011,-157.499232,0.00032877,7]
[313944685,1707844301021,-157.499232,0.00032877,7]
[313944686,1707844301031,-157.499232,0.00032877,7]
[313944687,1707844301040,-157.499232,0.00032877,7]
[313944688,1707844301050,-157.499232,0.00032877,7]
[313944689,1707844301061,-157.499232,0.00032877,7]
[313944690,1707844301072,-157.499232,0.00032877,7]
[313944691,1707844301081,-157.499234,0.00032877,7]
[313944692,1707844301091,-151.0,0.00032877,7]
[313944693,1707844301101,-151.0,0.00032877,7]
[313944694,1707844301111,-262.868813,0.00032877,7]
[313944695,1707844301120,-151.0,0.00032877,7]
[313944696,1707844301130,-151.0,0.00032877,7]
[313944697,1707844301141,-151.0,0.00032877,7]
[313944698,1707844301151,-245.0,0.00032877,7]
[313944699,1707844301164,-151.0,0.00032877,7]
[313944700,1707844301173,-252.58,0.00032877,7]
[313944701,1707844301184,-3046.73822635,0.00032877,2]
[313944702,1707844301194,-150.0,0.00032879,2]
[313944703,1707844301203,-150.0,0.00032879,2]
[313944704,1707844301212,-150.0,0.00032879,2]
[313944705,1707844301222,-150.0,0.00032879,2]
[313944706,1707844301231,-150.0,0.00032879,2]
[313944707,1707844301241,-150.0,0.00032879,2]
[313944708,1707844301250,-5273328.29914119,0.0003288,2]
[313944709,1707844301260,-635.42,0.0003288,2]
[313944710,1707844301269,-635.42,0.0003288,2]
[313944711,1707844301278,-635.42,0.0003288,2]
[313944712,1707844301287,-635.42,0.0003288,2]
[313944713,1707844301297,-635.42,0.0003288,2]
[313944714,1707844301306,-5000.0,0.000329,2]
[313944715,1707844301316,-161.35,0.000329,7]
[313944716,1707844301325,-2000.0,0.000329,2]
[313944717,1707844301335,-361.0,0.000329,2]
[313944718,1707844301346,-300.0,0.000329,2]
[313944719,1707844301355,-500.0,0.000329,2]
[313944720,1707844301364,-500.0,0.000329,2]
[313944721,1707844301373,-650.0,0.000329,2]
[313944722,1707844301382,-200.0,0.000329,2]
[313944723,1707844301391,-5364.0,0.000329,2]
[313944724,1707844301401,-1500.0,0.000329,2]
[313944725,1707844301410,-397.0,0.00032929,2]
[313944726,1707844301420,-1302.36,0.00032929,2]
[313944727,1707844301429,-1368.0,0.00032929,2]
[313944728,1707844301438,-453.0,0.00032929,2]
[313944729,1707844301449,-327.052,0.00032929,2]
[313944730,1707844301461,-1877.951,0.00032929,2]
[313944731,1707844301470,-952.0,0.00032929,2]
[313944732,1707844301479,-567.686,0.00032929,2]
[313944733,1707844301488,-216.461,0.00032929,2]
[313944734,1707844301497,-1256.743,0.00032929,2]
[313944735,1707844301506,-1954.493,0.00032929,2]
[313944736,1707844301515,-430.707,0.00032929,2]
[313944737,1707844301524,-238.465,0.00032929,2]
[313944738,1707844301534,-603.259,0.00032929,2]
[313944739,1707844301543,-939.502,0.00032929,2]
[313944740,1707844301553,-1008.352,0.00032929,2]
[313944741,1707844301562,-1138.0,0.00032929,2]
[313944742,1707844301572,-321.688,0.00032929,2]
[313944743,1707844301581,-343.736,0.00032929,2]
[313944744,1707844301590,-252.714,0.00032929,2]
[313944745,1707844301599,-453.0,0.00032929,2]
[313944746,1707844301608,-2419.655,0.00032929,2]
[313944747,1707844301617,-200.0,0.00032987,2]
[313944748,1707844301627,-50000.0,0.00033,3]
[313944749,1707844301636,-767.6781702,0.00033,4]
[313944750,1707844301645,-160.47777408,0.00033,2]
[313944751,1707844301655,-493.00255021,0.00033,4]
[313944752,1707844301665,-300.01369287,0.00033,4]
[313944753,1707844301675,-550.0,0.00033,3]
[313944754,1707844301684,-158.0,0.00033,2]
[313944755,1707844301694,-168.0,0.00033,2]
[313944756,1707844301703,-504.347275,0.00033039,2]
[313944757,1707844301712,-500.0,0.0003315,2]
[313944758,1707844301721,-500.0,0.0003315,2]
[313944759,1707844301730,-1934.6,0.0003315,2]
[313944760,1707844301739,-796.91,0.0003315,2]
[313944761,1707844301748,-2355.2931984,0.0003315,3]
[313944762,1707844301757,-500.0,0.0003315,2]
[313944763,1707844301766,-1000.0,0.0003315,3]
[313944764,1707844301775,-500.0,0.0003315,2]
[313944765,1707844301783,-540.54,0.0003315,2]
[313944766,1707844301792,-502.25,0.0003315,2]
[313944767,1707844301801,-1707.88,0.0003315,2]
[313944768,1707844301810,-708.66,0.0003315,2]
[313944769,1707844301819,-1697.57,0.0003315,2]
[313944770,1707844301828,-1398.01,0.0003315,2]
[313944771,1707844301837,-2373.55,0.0003315,2]
[313944772,1707844301846,-750.3,0.0003315,2]
[313944773,1707844301855,-502.3,0.0003315,2]
[313944774,1707844301864,-668.93,0.0003315,2]
[313944775,1707844301874,-537.7,0.0003315,2]
[313944776,1707844301883,-720.34,0.0003315,2]
[313944777,1707844301892,-500.0,0.0003315,2]
[313944778,1707844301901,-615.8,0.0003315,2]
[313944779,1707844301910,-500.0,0.0003315,2]
[313944780,1707844301919,-500.0,0.0003315,2]
[313944781,1707844301929,-2732.31,0.0003315,2]
[313944782,1707844301938,-500.0,0.0003315,2]
[313944783,1707844301949,-500.0,0.0003315,2]
[313944784,1707844301958,-1017.52,0.0003315,2]
[313944785,1707844301967,-830.13,0.0003315,2]
[313944786,1707844301978,-972.43,0.0003315,2]
[313944787,1707844301988,-500.0,0.0003315,2]
[313944788,1707844301997,-539.37,0.0003315,2]
[313944789,1707844302006,-500.0,0.0003315,2]
[313944790,1707844302016,-868.91,0.0003315,2]
[313944791,1707844302025,-525.01,0.0003315,2]
[313944792,1707844302035,-500.0,0.0003315,2]
[313944793,1707844302046,-629.55,0.0003315,2]
[313944794,1707844302056,-500.0,0.0003315,2]